fUST/lending_fUST_20241106
["ID","MTS","AMOUNT","RATE_DAILY","PERIOD"]
[341387037,1730862672723,-500.0,0.00026804,2]
[341387038,1730862672731,-500.0,0.00026804,2]
[341387039,1730862672741,-500.0,0.00026804,2]
[341387040,1730862672750,-500.0,0.00026804,2]
[341387041,1730862672760,-500.0,0.00026804,2]
[341387042,1730862672770,-500.0,0.00026804,2]
[341387043,1730862672779,-500.0,0.00026804,2]
[341387044,1730862672791,-399.68981098,0.00026804,2]
[341387045,1730862672806,-500.0,0.00026804,2]
[341387046,1730862672816,-500.0,0.00026804,2]
[341387047,1730862672827,-500.0,0.00026804,2]
[341387048,1730862672837,-500.0,0.00026804,2]
[341387049,1730862672848,-500.0,0.00026804,2]
[341387050,1730862672858,-500.0,0.00026804,2]
[341387051,1730862672867,-500.0,0.00026804,2]
[341387052,1730862672877,-500.0,0.00026804,2]
[341387053,1730862672889,-495.37264716,0.00026804,2]
[341387054,1730862672903,-4.62735284,0.00026804,2]
[341387055,1730862672913,-500.0,0.00026804,2]
[341387056,1730862672924,-235.37264716,0.00026804,2]
[341389698,1730862703157,1169.27083333,0.00020816,2]
[341397550,1730862850538,1083.58567538,0.00020816,2]
[341397551,1730862858896,593.3276853,0.00020816,2]
[341397552,1730862860964,3417.22217978,0.00022,120]
[341397553,1730863157390,167.121724,0.00013973,2]
[341397559,1730863314937,1169.27083333,0.00020816,2]
[341397567,1730863689291,169.499254,0.00013973,2]
[341397568,1730863726812,68836.4854647,0.00020377,2]
[341397678,1730863833165,-300.0,0.00020999,2]
[341397680,1730863833175,-300.0,0.00020999,2]
[341397682,1730863833184,-10000.0,0.00021,5]
[341397684,1730863833195,-10250.58893321,0.00021,2]
[341397686,1730863833204,-1476.02225034,0.00021,2]
[341397688,1730863833216,-509.17740452,0.000212,2]
[341397690,1730863833226,-618.92,0.0002199,3]
[341397692,1730863833236,-309.46,0.0002199,3]
[341397694,1730863833248,-154.73,0.0002199,3]
[341397696,1730863833258,-464.2,0.0002199,3]
[341397698,1730863833268,-311.24869847,0.00021999,2]
[341397700,1730863833278,-500.0,0.00021999,2]
[341397702,1730863833287,-358.96640051,0.00021999,2]
[341397704,1730863833296,-706.58667559,0.00022,2]
[341397721,1730863833401,-612493.07772937,0.00022,30]
[341397724,1730863833416,-22398.71165296,0.00022,2]
[341397726,1730863833427,-812.16608895,0.00022,3]
[341397728,1730863833437,-1169.27083333,0.00022102,2]
[341397730,1730863833447,-208.152854,0.00022637,2]
[341397732,1730863833457,-587.38780783,0.00022661,2]
[341397734,1730863833466,-511.27233116,0.00022661,2]
[341397735,1730863833477,-500.0,0.00022661,2]
[341397736,1730863833487,-500.0,0.00022661,2]
[341397737,1730863833499,-500.0,0.00022661,2]
[341397738,1730863833508,-503.96801302,0.00022661,2]
[341397739,1730863833518,-397.37063195,0.00022661,2]
[341397740,1730863833529,-500.0,0.00022661,2]
[341397741,1730863833538,-514.85352787,0.00022661,2]
[341397742,1730863833548,-500.0,0.00022661,2]
[341397743,1730863833558,-420.0,0.00022842,2]
[341397744,1730863833568,-2128.516854,0.0002298,2]
[341397745,1730863833578,-1237.84,0.0002336,3]
[341397746,1730863833587,-618.92,0.0002336,3]
[341397747,1730863833597,-309.46,0.0002336,3]
[341397748,1730863833607,-186.646725,0.00023609,2]
[341397749,1730863833616,-2128.516854,0.00023665,2]
[341397750,1730863833626,-6758.9266206,0.0002377,2]
[341397751,1730863833635,-196.4310488,0.00024016,2]
[341397752,1730863833645,-163.90483447,0.0002403,2]
[341397753,1730863833655,-507.5564034,0.00024031,2]
[341397754,1730863833664,-500.0,0.00024031,2]
[341397756,1730863833674,-1000.0,0.00024031,2]
[341397758,1730863833684,-1000.0,0.00024031,2]
[341397760,1730863833693,-3000.0,0.00024031,2]
[341397762,1730863833703,-2128.516854,0.0002435,2]
[341397764,1730863833713,-664.08,0.000247,14]
[341397766,1730863833724,-1920.49,0.000247,14]
[341397767,1730863833735,-2146.93,0.000247,14]
[341397769,1730863833745,-4162.23,0.000247,14]
[341397771,1730863833755,-904.58,0.000247,14]
[341397774,1730863833766,-587.0,0.00024847,2]
[341397776,1730863833776,-1000.0,0.00025,5]
[341397778,1730863833787,-24900.0,0.00025018,2]
[341397780,1730863833796,-2568.75757678,0.0002509,2]
[341397782,1730863833806,-400.0,0.00025469,3]
[341397784,1730863833816,-170.157971,0.00025587,2]
[341397786,1730863833825,-500.0,0.00026075,2]
[341397788,1730863833835,-1000.0,0.00026535,2]
[341397790,1730863833844,-500.0,0.00026535,2]
[341397792,1730863833854,-522.17231404,0.00026567,2]
[341397794,1730863833864,-5199.97659552,0.0002661,30]
[341397796,1730863833875,-186.646725,0.00026827,2]
[341397798,1730863833884,-690.0,0.00027028,2]
[341397800,1730863833894,-154.01634538,0.00027297,2]
[341397802,1730863833904,-927.28604094,0.0002737,4]
[341397804,1730863833914,-500.0,0.00027373,2]
[341397806,1730863833924,-500.0,0.00027373,2]
[341397808,1730863833934,-514.37877615,0.00027445,5]
[341397810,1730863833943,-169.499254,0.00027641,2]
[341397812,1730863833952,-175.297,0.00028531,20]
[341397813,1730863833962,-1000.0,0.00028742,5]
[341397815,1730863833972,-1000.0,0.00028742,5]
[341397818,1730863833986,-859.5626708,0.00029,2]
[341397820,1730863833995,-80799.98689501,0.00029,30]
[341397822,1730863834006,-664.08,0.000299,14]
[341397824,1730863834016,-2146.93,0.000299,30]
[341397825,1730863834026,-1920.49,0.000299,30]
[341397827,1730863834035,-904.58,0.000299,14]
[341397829,1730863834044,-170.045,0.0003,2]
[341397831,1730863834054,-197.138,0.0003,2]
[341397833,1730863834063,-151.0,0.0003,120]
[341397835,1730863834072,-186.071,0.0003,2]
[341397837,1730863834083,-391.33592305,0.0003,10]
[341397839,1730863834093,-1402.95254067,0.0003,10]
[341397841,1730863834103,-13883.30338053,0.0003,2]
[341397843,1730863834117,-4162.23,0.0003,14]
[341397845,1730863834126,-151.0,0.0003,120]
[341397847,1730863834136,-3000.0,0.000301,2]
[341397849,1730863834146,-3000.0,0.0003011,2]
[341397851,1730863834157,-3000.0,0.0003012,2]
[341397853,1730863834167,-3000.0,0.0003013,3]
[341397855,1730863834177,-518.40961129,0.00030137,2]
[341397857,1730863834186,-3000.0,0.0003014,3]
[341397859,1730863834197,-3000.0,0.0003015,3]
[341397861,1730863834206,-3000.0,0.0003016,3]
[341397863,1730863834217,-3000.0,0.0003017,3]
[341397865,1730863834228,-3000.0,0.0003018,3]
[341397867,1730863834239,-3000.0,0.0003019,3]
[341397869,1730863834248,-3000.0,0.000302,3]
[341397871,1730863834258,-3000.0,0.0003021,3]
[341397873,1730863834268,-3000.0,0.0003022,3]
[341397875,1730863834277,-3000.0,0.0003023,3]
[341397877,1730863834287,-3000.0,0.0003024,3]
[341397879,1730863834297,-3000.0,0.0003025,3]
[341397881,1730863834307,-3000.0,0.0003026,3]
[341397883,1730863834318,-3000.0,0.0003027,3]
[341397885,1730863834327,-3000.0,0.0003028,3]
[341397887,1730863834337,-3000.0,0.0003029,3]
[341397889,1730863834346,-3000.0,0.000303,3]
[341397891,1730863834356,-3000.0,0.0003031,3]
[341397893,1730863834366,-3000.0,0.0003032,3]
[341397895,1730863834380,-3553.321418,0.0003033,3]
[341397898,1730863834395,-526.73409376,0.00030464,2]
[341397900,1730863834409,-154.01634535,0.00030702,2]
[341397903,1730863834422,-706.20514449,0.00030852,2]
[341397905,1730863834435,-200.0,0.000309,120]
[341397907,1730863834446,-216.41012436,0.00031,2]
[341397909,1730863834457,-1500.0,0.00031247,5]
[341397912,1730863834469,-403.09193052,0.00031247,5]
[341397914,1730863834484,-468.08670469,0.00031987,2]
[341397916,1730863834497,-2472.20220684,0.00032,5]
[341397918,1730863834512,-173.8956921,0.00032,120]
[341397921,1730863834525,-6166.38651901,0.0003212,10]
[341397923,1730863834537,-1526.32502405,0.00032876,2]
[341397925,1730863834550,-500.0,0.00032876,7]
[341397927,1730863834561,-318.601826,0.00032877,120]
[341397930,1730863834574,-152.0,0.00033,2]
[341397932,1730863834587,-165.0,0.00033,2]
[341397934,1730863834599,-165.0,0.00033,2]
[341397937,1730863834613,-1970.11915059,0.00033,2]
[341397939,1730863834625,-35359.18682022,0.00033,2]
[341397941,1730863834636,-4500.0,0.00033,2]
[341397943,1730863834649,-151.0,0.00033151,120]
[341397946,1730863834660,-152.0,0.00033151,2]
[341397948,1730863834671,-9627.38157036,0.000333,2]
[341397950,1730863834682,-512.98751729,0.00033698,10]
[341397952,1730863834694,-1302.22,0.00033972,120]
[341397954,1730863834706,-154.01634535,0.00034107,2]
[341397957,1730863834719,-664.08,0.000342,30]
[341397959,1730863834731,-2146.93,0.000342,30]
[341397961,1730863834743,-1920.49,0.000342,30]
[341397963,1730863834754,-904.58,0.000342,30]
[341397965,1730863834765,-151.0,0.00034274,120]
[341397967,1730863834775,-4162.23,0.000343,30]
[341397969,1730863834787,-518.45,0.00034339,30]
[341397971,1730863834799,-504.87054124,0.00034491,5]
[341397974,1730863834808,-152.0,0.00034521,2]
[341397976,1730863834821,-153.0,0.00034793,30]
[341397978,1730863834833,-205.47,0.00034793,30]
[341397980,1730863834845,-155.0,0.00034794,30]
[341397983,1730863834858,-155.0,0.00034794,30]
[341397985,1730863834869,-155.0,0.00034794,30]
[341397988,1730863834886,-231.38052396,0.00034794,30]
[341397990,1730863834898,-1836.28639314,0.00034795,7]
[341397992,1730863834910,-1097.68409552,0.00034795,2]
[341397994,1730863834922,-2000.0,0.00034795,2]
[341397997,1730863834934,-300.0,0.00034795,2]
[341397999,1730863834946,-798.26126961,0.00034795,2]
[341398001,1730863834955,-517.2757658,0.00034795,2]
[341398003,1730863834965,-292.74062689,0.00034795,2]
[341398005,1730863834977,-4175.83793296,0.00034795,2]
[341398007,1730863834987,-322.37149251,0.00034795,2]
[341398009,1730863834997,-3056.82193286,0.00034795,2]
[341398011,1730863835012,-1193.6444769,0.00034795,2]
[341398013,1730863835023,-155.24003734,0.00034795,2]
[341398016,1730863835036,-518.5094159,0.00034795,2]
[341398018,1730863835047,-5764.49408467,0.00034795,5]
[341398020,1730863835060,-439.76688807,0.00034795,2]
[341398022,1730863835070,-224.63340677,0.00034795,2]
[341398024,1730863835079,-1024.64281201,0.00034795,2]
[341398027,1730863835092,-237.83714931,0.00034795,2]
[341398029,1730863835103,-657.59747935,0.00034795,2]
[341398031,1730863835115,-1839.12649244,0.00034795,2]
[341398033,1730863835129,-910.32678067,0.00034795,2]
[341398035,1730863835141,-165.96166564,0.00034795,7]
[341398038,1730863835153,-1746.34920239,0.00034795,2]
[341398040,1730863835165,-176.51957774,0.00034795,2]
[341398042,1730863835176,-461.33481195,0.00034795,2]
[341398044,1730863835188,-929.56279771,0.00034795,2]
[341398047,1730863835200,-1302.22,0.00034931,120]
[341398049,1730863835211,-37154.86784518,0.0003503,2]
[341398051,1730863835223,-1589.88,0.00035616,10]
[341398053,1730863835236,-1324.9,0.00035616,10]
[341398056,1730863835248,-1104.08,0.00035616,10]
[341398058,1730863835260,-920.07,0.00035616,10]
[341398060,1730863835272,-12766.83554127,0.0003588,30]
[341398062,1730863835284,-1302.22,0.0003589,120]
[341398065,1730863835296,-260.56225219,0.0003624,2]
[341398067,1730863835309,-152.0,0.00036247,2]
[341398069,1730863835320,-151.0,0.00036301,120]
[341398071,1730863835332,-1302.22,0.00036849,120]
[341398074,1730863835344,-154.01634535,0.00037511,2]
[341398076,1730863835357,-169.63883304,0.000378,2]
[341398079,1730863835370,-1302.22,0.00037808,120]
[341398081,1730863835381,-1238.89077419,0.00038,2]
[341398083,1730863835392,-500.0,0.00038356,14]
[341398085,1730863835404,-500.0,0.00038356,14]
[341398087,1730863835415,-502.95026774,0.00038356,14]
[341398090,1730863835426,-502.21779567,0.00038356,14]
[341398092,1730863835438,-506.25355842,0.00038356,5]
[341398094,1730863835452,-519.13322794,0.00038356,14]
[341398097,1730863835464,-500.0,0.00038356,2]
[341398099,1730863835474,-500.0,0.00038356,14]
[341398111,1730863835584,-500.0,0.00038356,14]
[341398114,1730863835600,-500.0,0.00038356,14]
[341398116,1730863835609,-500.0,0.00038356,14]
[341398118,1730863835620,-500.0,0.00038356,14]
[341398120,1730863835629,-548.35,0.00038356,14]
[341398122,1730863835640,-500.0,0.00038356,14]
[341398124,1730863835650,-500.0,0.00038356,14]
[341398126,1730863835659,-500.0,0.00038356,7]
[341398128,1730863835668,-500.0,0.00038356,14]
[341398130,1730863835678,-500.0,0.00038356,14]
[341398132,1730863835687,-500.0,0.00038356,14]
[341398134,1730863835696,-500.0,0.00038356,14]
[341398136,1730863835706,-500.0,0.00038356,14]
[341398138,1730863835715,-500.0,0.00038356,2]
[341398140,1730863835724,-500.0,0.00038356,14]
[341398142,1730863835736,-500.0,0.00038356,14]
[341398144,1730863835746,-500.0,0.00038356,14]
[341398146,1730863835756,-1115.95,0.00038356,14]
[341398149,1730863835766,-500.0,0.00038356,14]
[341398151,1730863835775,-275.58620615,0.00038356,14]
[341398153,1730863835787,-533.83378279,0.00038356,14]
[341398155,1730863835796,-500.0,0.00038356,14]
[341398157,1730863835806,-808.28,0.00038356,14]
[341398159,1730863835815,-500.0,0.00038356,14]
[341398160,1730863835826,-500.0,0.00038356,14]
[341398163,1730863835835,-500.0,0.00038356,14]
[341398165,1730863835845,-500.0,0.00038356,14]
[341398167,1730863835855,-250.0,0.00038356,14]
[341398169,1730863835864,-601.50978115,0.00038356,14]
[341398171,1730863835874,-201.36559308,0.00038356,14]
[341398173,1730863835884,-500.0,0.00038356,14]
[341398175,1730863835894,-500.0,0.00038356,14]
[341398177,1730863835904,-500.0,0.00038356,14]
[341398179,1730863835913,-500.0,0.00038356,14]
[341398181,1730863835923,-500.64420726,0.00038356,14]
[341398183,1730863835932,-748.46,0.00038356,14]
[341398185,1730863835943,-1000.0,0.00038356,30]
[341398187,1730863835952,-428.88,0.00038356,14]
[341398189,1730863835961,-500.0,0.00038356,14]
[341398191,1730863835970,-1121.31,0.00038356,14]
[341398193,1730863835981,-513.53361582,0.00038356,14]
[341398195,1730863835990,-300.16334178,0.00038356,14]
[341398197,1730863835999,-500.0,0.00038356,14]
[341398199,1730863836009,-500.0,0.00038356,14]
[341398201,1730863836018,-500.0,0.00038356,14]
[341398203,1730863836027,-501.0,0.00038356,14]
[341398205,1730863836037,-500.0,0.00038356,14]
[341398207,1730863836047,-500.0,0.00038356,14]
[341398209,1730863836056,-1883.82,0.00038356,14]
[341398211,1730863836065,-500.0,0.00038356,14]
[341398213,1730863836075,-502.23039886,0.00038356,14]
[341398215,1730863836084,-500.0,0.00038356,14]
[341398217,1730863836094,-322.49337865,0.00038356,14]
[341398219,1730863836104,-500.0,0.00038356,14]
[341398221,1730863836117,-2816.22,0.00038356,14]
[341398223,1730863836126,-501.73030376,0.00038356,14]
[341398225,1730863836136,-408.93160912,0.00038356,14]
[341398227,1730863836146,-157.88182147,0.00038356,2]
[341398229,1730863836157,-4398.91,0.00038356,14]
[341398231,1730863836167,-318.601826,0.00038356,120]
[341398233,1730863836177,-664.08,0.000384,30]
[341398235,1730863836187,-2146.93,0.000384,30]
[341398237,1730863836198,-1920.49,0.000384,30]
[341398239,1730863836208,-156.55589766,0.00038478,2]
[341398241,1730863836217,-188.2212161,0.00038478,2]
[341398242,1730863836230,-151.0,0.00038548,120]
[341398245,1730863836244,-500.0,0.0003863,14]
[341398246,1730863836254,-500.0,0.0003863,14]
[341398248,1730863836263,-296.32467933,0.0003863,14]
[341398250,1730863836272,-500.0,0.0003863,14]
[341398252,1730863836282,-500.0,0.0003863,14]
[341398254,1730863836291,-548.35,0.0003863,14]
[341398256,1730863836301,-318.43,0.0003863,14]
[341398258,1730863836311,-164.75,0.0003863,14]
[341398260,1730863836320,-264.5,0.0003863,14]
[341398261,1730863836329,-500.0,0.0003863,14]
[341398262,1730863836340,-500.0,0.0003863,2]
[341398263,1730863836350,-474.77633388,0.0003863,14]
[341398264,1730863836359,-1115.95,0.0003863,14]
[341398265,1730863836369,-500.0,0.0003863,14]
[341398266,1730863836378,-500.0,0.0003863,14]
[341398267,1730863836388,-808.28,0.0003863,14]
[341398268,1730863836397,-500.0,0.0003863,14]
[341398269,1730863836406,-500.0,0.0003863,14]
[341398270,1730863836415,-500.0,0.0003863,14]
[341398271,1730863836425,-500.0,0.0003863,14]
[341398272,1730863836435,-506.17671451,0.0003863,14]
[341398273,1730863836444,-748.46,0.0003863,14]
[341398274,1730863836455,-1000.0,0.0003863,30]
[341398275,1730863836465,-500.0,0.0003863,14]
[341398277,1730863836476,-1121.31,0.0003863,14]
[341398279,1730863836490,-500.0,0.0003863,14]
[341398281,1730863836500,-500.0,0.0003863,14]
[341398283,1730863836509,-582.40922839,0.0003863,14]
[341398285,1730863836519,-500.0,0.0003863,14]
[341398287,1730863836528,-1883.82,0.0003863,14]
[341398289,1730863836537,-500.0,0.0003863,14]
[341398291,1730863836547,-500.0,0.0003863,14]
[341398293,1730863836556,-2816.22,0.0003863,14]
[341398295,1730863836566,-4398.91,0.0003863,14]
[341398297,1730863836575,-152.0,0.00038663,14]
[341398298,1730863836585,-4162.23,0.000387,30]
[341398300,1730863836594,-1302.22,0.00038767,120]
[341398302,1730863836603,-529.0,0.00038869,2]
[341398304,1730863836613,-2396.0,0.00038869,2]
[341398306,1730863836623,-500.0,0.00038904,14]
[341398308,1730863836632,-188.49133332,0.00038904,14]
[341398310,1730863836642,-500.0,0.00038904,14]
[341398312,1730863836651,-548.35,0.00038904,14]
[341398314,1730863836660,-167.87,0.00038904,14]
[341398316,1730863836670,-500.0,0.00038904,2]
[341398318,1730863836680,-1115.95,0.00038904,14]
[341398320,1730863836689,-500.0,0.00038904,14]
[341398322,1730863836699,-808.28,0.00038904,14]
[341398324,1730863836708,-500.0,0.00038904,14]
[341398326,1730863836718,-500.0,0.00038904,14]
[341398328,1730863836732,-500.0,0.00038904,14]
[341398330,1730863836741,-500.0,0.00038904,14]
[341398332,1730863836751,-748.46,0.00038904,14]
[341398335,1730863836760,-1000.0,0.00038904,30]
[341398336,1730863836770,-500.0,0.00038904,14]
[341398338,1730863836779,-1121.31,0.00038904,14]
[341398341,1730863836788,-500.0,0.00038904,14]
[341398343,1730863836798,-500.0,0.00038904,14]
[341398345,1730863836807,-553.04868151,0.00038904,14]
[341398347,1730863836816,-1883.82,0.00038904,14]
[341398349,1730863836825,-500.0,0.00038904,14]
[341398351,1730863836834,-500.0,0.00038904,14]
[341398353,1730863836844,-2816.22,0.00038904,14]
[341398355,1730863836853,-4398.91,0.00038904,14]
[341398357,1730863836862,-404.60620013,0.00039,3]
[341398359,1730863836871,-13135.0398773,0.00039,30]
[341398361,1730863836880,-512.75506592,0.00039,2]
[341398363,1730863836889,-651941.78324028,0.00039,2]
[341398365,1730863836899,-500.0,0.00039178,14]
[341398367,1730863836909,-500.0,0.00039178,14]
[341398369,1730863836918,-548.35,0.00039178,14]
[341398371,1730863836927,-372.0999154,0.00039178,2]
[341398373,1730863836936,-1115.95,0.00039178,14]
[341398375,1730863836946,-500.0,0.00039178,14]
[341398377,1730863836956,-808.28,0.00039178,14]
[341398379,1730863836965,-591.56712355,0.00039178,14]
[341398381,1730863836975,-500.0,0.00039178,14]
[341398383,1730863836988,-500.0,0.00039178,14]
[341398385,1730863836998,-500.0,0.00039178,14]
[341398387,1730863837007,-748.46,0.00039178,14]
[341398389,1730863837016,-1000.0,0.00039178,30]
[341398391,1730863837025,-500.0,0.00039178,14]
[341398393,1730863837034,-1121.31,0.00039178,14]
[341398395,1730863837044,-500.0,0.00039178,14]
[341398397,1730863837054,-500.0,0.00039178,14]
[341398399,1730863837063,-1883.82,0.00039178,14]
[341398401,1730863837072,-500.0,0.00039178,14]
[341398404,1730863837082,-500.0,0.00039178,14]
[341398406,1730863837091,-2816.22,0.00039178,14]
[341398408,1730863837101,-4398.91,0.00039178,14]
[341398410,1730863837115,-500.0,0.00039227,5]
[341398412,1730863837124,-500.0,0.00039452,14]
[341398414,1730863837134,-500.0,0.00039452,14]
[341398416,1730863837144,-548.35,0.00039452,14]
[341398418,1730863837154,-1115.95,0.00039452,14]
[341398420,1730863837164,-500.0,0.00039452,14]
[341398422,1730863837174,-808.28,0.00039452,14]
[341398424,1730863837184,-500.0,0.00039452,14]
[341398426,1730863837195,-500.0,0.00039452,14]
[341398428,1730863837206,-466.82574041,0.00039452,14]
[341398430,1730863837215,-748.46,0.00039452,14]
[341398432,1730863837225,-945.44516359,0.00039452,30]
[341398434,1730863837238,-500.0,0.00039452,14]
[341398436,1730863837247,-1121.31,0.00039452,14]
[341398438,1730863837256,-500.0,0.00039452,14]
[341398440,1730863837265,-500.0,0.00039452,14]
[341398442,1730863837274,-1883.82,0.00039452,14]
[341398444,1730863837283,-500.0,0.00039452,14]
[341398446,1730863837292,-500.0,0.00039452,14]
[341398448,1730863837301,-2816.22,0.00039452,14]
[341398450,1730863837311,-4398.91,0.00039452,14]
[341398452,1730863837320,-151.0,0.00039452,120]
[341398454,1730863837330,-500.0,0.00039605,5]
[341398456,1730863837339,-500.0,0.00039646,5]
[341398458,1730863837348,-500.0,0.00039666,5]
[341398460,1730863837357,-500.0,0.00039666,5]
[341398462,1730863837366,-500.0,0.00039726,2]
[341398464,1730863837375,-500.0,0.00039726,14]
[341398466,1730863837384,-500.0,0.00039726,14]
[341398468,1730863837393,-548.35,0.00039726,14]
[341398470,1730863837403,-1115.95,0.00039726,14]
[341398472,1730863837412,-500.0,0.00039726,14]
[341398474,1730863837421,-808.28,0.00039726,14]
[341398476,1730863837430,-1302.22,0.00039726,120]
[341398478,1730863837440,-500.0,0.00039726,14]
[341398480,1730863837449,-500.0,0.00039726,14]
[341398482,1730863837458,-748.46,0.00039726,14]
[341398484,1730863837468,-500.0,0.00039726,14]
[341398487,1730863837477,-1121.31,0.00039726,14]
[341398489,1730863837489,-500.0,0.00039726,14]
[341398490,1730863837502,-500.0,0.00039726,14]
[341398493,1730863837511,-1883.82,0.00039726,14]
[341398494,1730863837521,-500.0,0.00039726,14]
[341398496,1730863837530,-500.0,0.00039726,14]
[341398498,1730863837539,-2816.22,0.00039726,14]
[341398500,1730863837548,-4398.91,0.00039726,14]
[341398502,1730863837557,-392.81349475,0.00039999,31]
[341398504,1730863837567,-399.8171509,0.00039999,31]
[341398506,1730863837576,-500.0,0.00039999,31]
[341398509,1730863837585,-226.24696308,0.00039999,31]
[341398510,1730863837595,-379.13149252,0.00039999,31]
[341398512,1730863837604,-500.0,0.00039999,31]
[341398514,1730863837614,-500.0,0.00039999,31]
[341398517,1730863837626,-500.0,0.00039999,31]
[341398519,1730863837635,-209.62242635,0.00039999,31]
[341398521,1730863837645,-500.0,0.00039999,31]
[341398523,1730863837655,-500.0,0.00039999,31]
[341398525,1730863837664,-504.25493453,0.00039999,31]
[341398527,1730863837675,-500.0,0.0004,14]
[341398529,1730863837685,-500.0,0.0004,14]
[341398531,1730863837694,-548.35,0.0004,14]
[341398533,1730863837703,-1115.95,0.0004,14]
[341398535,1730863837713,-500.0,0.0004,14]
[341398537,1730863837723,-808.28,0.0004,14]
[341398539,1730863837735,-500.0,0.0004,14]
[341398541,1730863837745,-500.0,0.0004,14]
[341398543,1730863837755,-203.14754827,0.0004,7]
[341398545,1730863837765,-748.46,0.0004,14]
[341398547,1730863837774,-500.0,0.0004,14]
[341398557,1730863837855,-1121.31,0.0004,14]
[341398559,1730863837864,-500.0,0.0004,14]
[341398561,1730863837874,-189.44936411,0.0004,14]
[341398563,1730863837884,-507.17408363,0.0004,5]
[341398565,1730863837894,-1883.82,0.0004,14]
[341398567,1730863837903,-388.14360128,0.0004,14]
[341398569,1730863837913,-500.0,0.0004,14]
[341398571,1730863837922,-2816.22,0.0004,14]
[341398573,1730863837932,-4398.91,0.0004,14]
[341398575,1730863837941,-500.0,0.00040273,14]
[341398577,1730863837951,-500.0,0.00040273,14]
[341398579,1730863837963,-548.35,0.00040273,14]
[341398581,1730863837973,-1115.95,0.00040273,14]
[341398583,1730863837985,-500.0,0.00040273,14]
[341398585,1730863837995,-808.28,0.00040273,14]
[341398587,1730863838005,-500.0,0.00040273,14]
[341398589,1730863838014,-500.0,0.00040273,14]
[341398591,1730863838024,-748.46,0.00040273,14]
[341398593,1730863838034,-500.0,0.00040273,14]
[341398595,1730863838043,-1121.31,0.00040273,14]
[341398598,1730863838053,-230.78119035,0.00040273,14]
[341398601,1730863838062,-1883.82,0.00040273,14]
[341398603,1730863838071,-500.0,0.00040273,14]
[341398605,1730863838080,-2816.22,0.00040273,14]
[341398607,1730863838090,-4398.91,0.00040273,14]
[341398609,1730863838099,-211.2956293,0.00040384,30]
[341398611,1730863838109,-211.2956293,0.00040384,30]
[341398613,1730863838121,-263086.7770037,0.000405,60]
[341398615,1730863838131,-500.0,0.00040547,14]
[341398617,1730863838140,-500.0,0.00040547,14]
[341398619,1730863838150,-548.35,0.00040547,14]
[341398621,1730863838160,-1115.95,0.00040547,14]
[341398623,1730863838169,-500.0,0.00040547,14]
[341398625,1730863838179,-808.28,0.00040547,14]
[341398627,1730863838188,-500.0,0.00040547,14]
[341398629,1730863838199,-500.0,0.00040547,14]
[341398631,1730863838209,-748.46,0.00040547,14]
[341398634,1730863838219,-500.0,0.00040547,14]
[341398636,1730863838231,-1121.31,0.00040547,14]
[341398638,1730863838240,-1883.82,0.00040547,14]
[341398640,1730863838250,-500.0,0.00040547,14]
[341398642,1730863838259,-2816.22,0.00040547,14]
[341398644,1730863838268,-4398.91,0.00040547,14]
[341398646,1730863838278,-1000.0,0.00040597,5]